Cogmind - Beta 14 *** ADVENTURER MODE // 2024.08.17 @ 20:41:00 Player: Solorich Result: Destroyed by L-31 Rogue with Katana Performance ------------- Evolutions (1) 500 Regions Visited (2) 400 Robots Destroyed (22) 110 Value Destroyed (663) 663 Prototype IDs (1) 20 Alien Tech Used (0) 0 Bonus (0) 0 TOTAL SCORE: 1693 Bonus ------- None Cogmind --------- Core Integrity 0/400 Matter 300/300 Energy 100/100 System Corruption 0% Temperature Cool (0) Movement Core (2350) Ox46 Location -9/Materials Parts ------- > --- POWER (2) -------- (None) > --- PROPULSION (2) --- (None) > --- UTILITY (3) ------ Cargo Storage Unit > --- WEAPON (2) ------- (None) > --- INVENTORY (30) --- Ion Engine Ion Engine Light Ion Engine Light Ion Engine Improved Ion Engine Improved Ion Engine Wheel Compact Wheel Compact Wheel Cargo Storage Unit Cargo Storage Unit Cargo Storage Unit Cargo Storage Unit Weight Redist. System Visual Processing Unit Seismic Detector Small Laser Spread Laser Spread Laser Peak State ------------ > --- POWER ------------ Improved Ion Engine Improved Ion Engine > --- PROPULSION ------- Compact Wheel Compact Wheel > --- UTILITY ---------- Cargo Storage Unit Hardened Light Armor Plating > --- WEAPON ----------- Spread Laser Improved Medium Laser > --- INVENTORY -------- Ion Engine Light Ion Engine Improved Ion Engine Light Treads Light Treads Cargo Storage Unit Cargo Storage Unit Cargo Storage Unit Cargo Storage Unit Weight Redist. System Visual Processing Unit Seismic Detector Particle Gun Spread Laser [Rating: 17] Favorites ----------- Power Improved Ion Engine Engine Improved Ion Engine Propulsion Compact Wheel Treads Light Treads Wheel Compact Wheel Utility Cargo Storage Unit Device Seismic Detector Storage Cargo Storage Unit Protection Hardened Light Armor Plating Weapon EM Pulse Gun Energy Gun EM Pulse Gun Build | -11 -10 -9 ------- Run | Yrd Mat Mat Slots Evolved 2 | . . 2 Power 1 | . . 1 Propulsion . | . . . Utility 1 | . . 1 Weapon . | . . . Parts Attached 21 | 7 3 11 Power 3 | 1 . 2 Engine 3 | 1 . 2 Core . | . . . Reactor . | . . . Propulsion 5 | 2 . 3 Treads 2 | . . 2 Leg . | . . . Wheel 3 | 2 . 1 Hover . | . . . Flight . | . . . Utility 5 | 1 2 2 Device 1 | . 1 . Storage 3 | 1 1 1 Processor . | . . . Hackware . | . . . Protection 1 | . . 1 Artifact . | . . . Weapon 8 | 3 1 4 Energy Gun 8 | 3 1 4 Energy Cannon . | . . . Ballistic Gun . | . . . Ballistic Cannon . | . . . Launcher . | . . . Special Weapon . | . . . Impact Weapon . | . . . Slashing Weapon . | . . . Piercing Weapon . | . . . Special Melee Weapon . | . . . Unidentified Prototypes 1 | . . 1 Parts Lost 6 | . . 6 Power 2 | . . 2 Propulsion . | . . . Utility 1 | . . 1 Weapon 3 | . . 3 Highest Loss Streak 3 | . . 3 To Critical Strikes . | . . . Average Slot Usage (%) 82 | . 92 80 Engine 19 | . 14 21 Wheel 20 | . 28 18 Device 1 | . 7 . Storage 11 | . 14 11 Protection 7 | . . 9 Energy Gun 22 | . 27 20 Peak Build Rating 17 | 6 9 17 Average Rating 12 | 4 6 14 On Entrance 5 | . 6 9 Naked Turns . | . . . Heaviest Build 165 | 13 21 165 Greatest Support 32 | 32 32 32 Greatest Overweight (x) 54 | 3 . 54 Average Overweight (x) 3 | . . 6 Largest Inventory Capacity 30 | 8 10 30 Average Capacity 23 | 7 9 29 Most Carried 25 | 4 9 25 Average Carried 14 | 2 4 18 Final Capacity 30 | 8 10 30 Final Carried 23 | 4 9 23 Class Distribution -------------------- 75% | Hauler-Mutant 24% | Mutant Dominant Class ---------------- Mutant | -10/Materials Hauler-Mutant | -9/Materials Resources | -11 -10 -9 ----------- Run | Yrd Mat Mat Matter Collected 439 | 247 43 149 Remotely . | . . . Salvage Created 838 | . 105 733 Parts 47 | . 8 39 Haulers Intercepted . | . . . Recyclers Shooed 3 | . . 3 Parts Field Recycled . | . . . Retrieved Matter . | . . . Parts Self-Destructed . | . . . Prevented . | . . . Kills | -11 -10 -9 ------- Run | Yrd Mat Mat Combat Hostiles Destroyed 16 | . 2 14 Guns 15 | . 2 13 AOE 1 | . . 1 Classes Destroyed 6 | . 2 4 Worker 1 | . . 1 Recycler 2 | . . 2 Watcher 3 | . 1 2 Grunt 13 | . 2 11 Duelist 1 | . . 1 Sentry 2 | . . 2 Best Kill Streak 6 | . 2 6 Combat Bots Only 3 | . 2 3 Max Kills in Single Turn 2 | . 1 2 Gunslinging . | . . . Exploded 1 | . . 1 Melee . | . . . Uniques/NPCs Destroyed . | . . . Combat | -11 -10 -9 -------- Run | Yrd Mat Mat Hostile Shots Fired 105 | . 10 95 Missed 32 | . 2 30 Damage Taken 979 | . 92 887 Core 429 | . 12 417 Absorbed by Shields . | . . . Ignored by Resistances 240 | . 27 213 Core Remaining (%) 97 | 100 95 . Volleys Fired 45 | . 9 36 Largest 2 | . 2 2 Hottest 130 | . 80 130 Shots Fired 80 | . 18 62 Gun 80 | . 18 62 Cannon . | . . . Launcher . | . . . Special . | . . . Kinetic . | . . . Thermal 60 | . 9 51 Explosive . | . . . Electromagnetic 20 | . 9 11 Robot Hit Streak 15 | . 9 15 Robot Miss Streak 3 | . 1 3 Penetration Max . | . . . Secondary Targets 2 | . . 2 Max Gunslinging Chain 1 | . . 1 Shots Hit Robots 58 | . 13 45 Core Hits 48 | . 6 42 Critical Kills . | . . . Critical Parts Destroyed . | . . . Critical Strikes 1 | . 1 . Corrupt 1 | . 1 . Melee Attacks . | . . . Impact . | . . . Slashing . | . . . Piercing . | . . . Sneak Attacks . | . . . Combat Hostiles . | . . . Follow-up Attacks . | . . . Damage Inflicted 1029 | . 164 865 Guns 953 | . 164 789 Cannons . | . . . Explosions 63 | . . 63 Melee . | . . . Ramming 13 | . . 13 Kinetic . | . . . Thermal 806 | . 65 741 Explosive . | . . . Electromagnetic 210 | . 99 111 Impact . | . . . Slashing . | . . . Piercing . | . . . Highest Corruption . | . . . Average Corruption . | . . . Corruption Purged . | . . . Corruption Blocked . | . . . Overload Shots . | . . . Overflow Damage . | . . . Projectiles . | . . . Explosions . | . . . Melee . | . . . Knockbacks . | . . . Impact . | . . . Kinetic . | . . . Secondary . | . . . Self-Inflicted Damage 6 | . . 6 Shots . | . . . Rammed 1 | . . 1 Targets Rammed 1 | . . 1 Kicked . | . . . Crushed . | . . . Highest Temperature 637 | . 203 637 Average Temperature 212 | . 94 227 Received Heat Transfer 396 | . 66 330 Effects 44 | . . 44 Shutdowns 7 | . . 7 Energy Bleed 5 | . . 5 Interference 11 | . . 11 Matter Decay 1 | . . 1 Short Circuit 3 | . . 3 Damage (minor) 4 | . . 4 Damage (major) 10 | . . 10 Damage (core) 3 | . . 3 Siege Activations . | . . . Robots Corrupted . | . . . Combat Hostiles . | . . . Parts Fried . | . . . Impact Corruptions . | . . . Robots Melted . | . . . Combat Hostiles . | . . . Parts Melted 2 | . 1 1 Heat Transferred 1592 | . 150 1442 Parts Sabotaged . | . . . Parts Stolen . | . . . Parts Stripped . | . . . Power Chain Reactions 1 | . . 1 Alert | -11 -10 -9 ------- Run | Yrd Mat Mat Peak Influence 283 | . 88 283 Initial 31 | . . 31 Average 106 | . 59 133 Maximum Alert Level 1 | . . 1 Low Security (%) 84 | 100 100 78 Level 1 15 | . . 21 Level 2 . | . . . Level 3 . | . . . Level 4 . | . . . Level 5 . | . . . High Security . | . . . Max Security . | . . . Squads Dispatched 2 | . . 2 Investigation 2 | . . 2 Extermination . | . . . Reinforcement . | . . . Assault . | . . . Garrison . | . . . Intercept . | . . . Searches Triggered . | . . . Construction Impeded . | . . . Haulers Reinforced . | . . . Active Scanning Responses . | . . . Cargo Convoy Interrupts . | . . . Stealth | -11 -10 -9 --------- Run | Yrd Mat Mat Distress Signals 1 | . . 1 Communications Jammed . | . . . Distress Signals . | . . . Times Spotted 27 | . 4 23 Peak Tracking Total 4 | . 3 4 Tactical Retreats . | . . . Traps | -11 -10 -9 ------- Run | Yrd Mat Mat Traps Triggered 2 | . 1 1 Indirectly . | . . . Trap Hack Attempts . | . . . Triggered . | . . . Disarmed . | . . . Reprogrammed . | . . . Reused . | . . . Traps Extracted . | . . . Installed . | . . . Triggered . | . . . Machines | -11 -10 -9 ---------- Run | Yrd Mat Mat Machines Disabled 1 | . . 1 Max in Single Turn 1 | . . 1 Machines Repaired . | . . . Machines Dismantled . | . . . Machines Sabotaged . | . . . Overloaded Fab Kills . | . . . Hacking | -11 -10 -9 --------- Run | Yrd Mat Mat Machines Accessed 1 | . 1 . Terminals 1 | . 1 . Fabricators . | . . . Repair Stations . | . . . Recycling Units . | . . . Scanalyzers . | . . . Garrison Access . | . . . Total Hacks 2 | . 2 . Successful 1 | . 1 . Failed 1 | . 1 . Catastrophic . | . . . Database Lockouts . | . . . Manual . | . . . Terminals 2 | . 2 . Fabricators . | . . . Repair Stations . | . . . Recycling Units . | . . . Scanalyzers . | . . . Garrison Access . | . . . Terminal Hacks 1 | . 1 . Record 1 | . 1 . Fabricator Hacks . | . . . Repair Station Hacks . | . . . Recycling Unit Hacks . | . . . Scanalyzer . | . . . Garrison Access Hacks . | . . . Unauthorized Hacks . | . . . Terminals . | . . . Fabricators . | . . . Repair Stations . | . . . Recycling Units . | . . . Scanalyzers . | . . . Garrison Access . | . . . Data Cores Recovered . | . . . Used . | . . . Hacking Detections 1 | . 1 . Full Trace Events . | . . . Feedback Events . | . . . Feedback Blocked . | . . . Robot Schematics Acquired . | . . . Robots Built . | . . . Authchips . | . . . Time . | . . . Total Robot Build Rating . | . . . Part Schematics Acquired . | . . . Parts Built . | . . . Authchips . | . . . Time . | . . . Total Part Build Rating . | . . . Parts Repaired . | . . . Time . | . . . Parts Recycled . | . . . Recycled Matter . | . . . Retrieved Matter . | . . . Retrieved Components . | . . . Parts Scanalyzed . | . . . Part Schematics Acquired . | . . . Parts Damaged . | . . . Bothacking | -11 -10 -9 ------------ Run | Yrd Mat Mat Used RIF Installer . | . . . Robots Hacked . | . . . Non-combat . | . . . Combat . | . . . Robot Hacks Applied . | . . . Relay Couplers Released . | . . . Fabnet Peak Effective % . | . . . Robots Rewired . | . . . Allies Hacked . | . . . Hacks Repelled . | . . . Allies | -11 -10 -9 -------- Run | Yrd Mat Mat Total Allies . | . . . Largest Group . | . . . Highest-Rated Group . | . . . Highest-Rated Ally . | . . . Total Orders . | . . . Ally Attacks . | . . . Total Damage . | . . . Kills . | . . . Allies Corrupted . | . . . Allies Melted . | . . . Intel | -11 -10 -9 ------- Run | Yrd Mat Mat Robot Analysis Total . | . . . Derelict Logs Recovered . | . . . Drone Launches . | . . . Drone Recoveries . | . . . Exploration | -11 -10 -9 ------------- Run | Yrd Mat Mat Turns Passed 1012 | 94 194 724 Spaces Moved 504 | 79 154 271 Core 21 | 16 . 5 Treads . | . . . Legs . | . . . Wheels 483 | 63 154 266 Hover . | . . . Flight . | . . . Fastest Speed 50 | 50 100 100 Average Speed 166 | 101 100 223 Slowest Speed 2750 | 200 100 2750 Overloaded Moves . | . . . Propulsion Burnouts . | . . . Robots Hopped . | . . . Cave-ins Triggered . | . . . Exploration Rate (%) 17 | 6 22 24 Regions Visited 2 Branch Regions . Pre-discovered Areas . | . . . Known Exits Taken . | . . . Unknown Exits Taken 2 | 1 1 . Scrap Searched . | . . . Spaces Dug . | . . . Terrain Destroyed 8 | . . 8 Melee . | . . . Projectile . | . . . AOE 8 | . . 8 Terrain Rammed . | . . . Walls Destroyed . | . . . Machines Disabled . | . . . Actions | -11 -10 -9 --------- Run | Yrd Mat Mat Total 610 | 89 176 345 Wait 3 | . . 3 Move 502 | 78 153 271 Hop . | . . . Pick Up 22 | 3 7 12 Fast Attach 12 | 7 3 2 Attach 9 | . . 9 Detach 8 | 1 . 7 Swap . | . . . Drop 8 | . 4 4 Fire 45 | . 9 36 Melee . | . . . Ram 1 | . . 1 Kick . | . . . Crush . | . . . Escape Stasis . | . . . Rewire . | . . . Trap . | . . . Miscellaneous . | . . . Route ------- -11/Scrapyard -10/Materials -9/Materials History --------- Turn | Location | Event 21 | -11/Scrapyard | Discovered new exit (range 16) 95 | -11/Scrapyard | Entered Materials 255 | -10/Materials | Discovered new exit (range 5) 289 | -10/Materials | Entered another Materials area 289 | -9/Materials | Evolved 2 slots: Power x1, Utility x1 553 | -9/Materials | Build established: Hauler-Mutant 743 | -9/Materials | Core integrity fell below 50% 997 | -9/Materials | Core integrity fell below 20% 1013 | -9/Materials | Destroyed by L-31 Rogue with Katana Last Messages --------------- 00886_ Overheating: Imp. Medium Laser damaged (-9). 00886_ Acquired 20 matter. 00902_ K-01 Serf collects debris. 00930_ K-01 Serf cleans the Pressure Siphon. 00940_ K-01 Serf collects debris. 00946_ Imp. Medium Laser destroyed. 00948_ Hrd. Light Armor Plating destroyed. 00950_ K-01 Serf cleans the Pressure Siphon. 00951_ Heat Sink melted. 00951_ G-34 Mercenary destroyed. 00951_ K-01 Serf collects debris. 00973_ K-01 Serf cleans the Pressure Siphon. 00981_ Imp. Ion Engine destroyed. 00987_ K-01 Serf cleans the Pressure Siphon. 01001_ K-01 Serf destroyed. 01004_ Particle Gun destroyed. 01008_ K-01 Serf cleans the Pressure Siphon. Map ----- +----------------------------------------------------+ | ?????????????????????????????????????????????????? | | ?????????????????????????????????????????????????? | | ?????????????????????????????????????????????????? | | ?????????????????????????????????????????????????? | | ?????????????????????????????????????????????????? | | ?????????????????????????????????????????????????? | | ?????????????????????????????????????????????????? | | ?????????????????????????????????????????????????? | | ?????????????????????????????????????????????????? | | ?????????????????????????????????????????????????? | | ?????????????????????????????????????????????????? | | ?????????????????????????????????????????????????? | | ?????????????????????????????????????????????????? | | ?????????????????????????????????????????????????? | | ?????????????????????????????????????????????????? | | ?????????????????????????????????????????????????? | | ?????????????????????????????????????????????????? | | ?????????????????????????????????????????????????? | | ?????????????????????????????????????????????????? | | ?????????????????????????????????????????????????? | | ?????????????????????????????????????????????????? | | ?????????????????????????????????????????????????? | | ?????????????????????????????????????????????????? | | ???????????????#######???????????????????????????? | | ???????????????# =########### ???????? | | ???????????????# ==+=%!@l!!*%= ^ r ???????? | | ???????????????# %#####!g^%==g ???????? | | ???????????????# ! #???#[!a=*! k w ???????? | | ???????????????# ! !#???#%[ """ """ ????????? | | ???????????????# %#???# """ ""????????????? | | ???????????????# #???# """ ""????????????? | | ????????###########/####?# """ ???????????????? | | ???????## % #?# ????????????????? | | ???? #?# ????????????????? | | ???? #?? ???????????????? | | ????? #??####"T"#???????????????? | | ?????#### #??????####???????????????? | | ????????# """ #?????????????????????????? | | ????????# """"" #?????????????????????????? | | ????????# """"" #?????????????????????????? | | ????????# """"" #?????????????????????????? | | ????????# "" #?????????????????????????? | | ????????# #?????????????????????????? | | ????????# #?????????????????????????? | | ????????# != #?????????????????????????? | | ????????# ##% %= ###########???????????????? | | ????????# ??# # #???????????????? | | ????????# ???# # #???????????????? | | ????????# ?????# # """ """ #???????????????? | | ????????#??????# #!""" """ #???????????????? | +----------------------------------------------------+ Best States ------------- Heat Dissipation 28 Energy Generation 19 Energy Capacity 430 Matter Stores 300 Matter Capacity 300 Sight Range 16 Terrain Scan Density 10 Armor Coverage 150 Resistance: KI 20 Resistance: TH 20 Resistance: EX 20 Resistance: EM 20 Resistance: I 20 Resistance: S 20 Resistance: P 20 Evasion (%) 40 Offensive Hacking 10 Item Schematics ----------------- None Robot Schematics ------------------ None Fabricated ------------ Nothing Alien Tech Used ----------------- None Achievements -------------- None Challenges ------------ None Game ------ Seed NeutrinoMyomerCleaver Manual? 0 Play Time 00:20:44 Cumulative 60.0 hours Start 2024.08.15 @ 17:43:20 End 2024.08.17 @ 20:41:00 Sessions 3 Manual Loads 0 Difficulty Adventurer Special Mode None Game No. 34 Rogue 0 Adventurer 5 Explorer 29 Win Type - Total 0 Types 0/0/0/0/0/0/0/0/0 Lore% 4 Gallery% 30 Achievement% 20 Wizard Run 0 Options --------- Layout 1 ASCII 0 Keyboard 0 Movement Mouse Keybinds 0 Fullscreen 1 Font 32/SmallcapsGlow Map View 50x35 Zoom Use 0% Tactical HUD 1 Map Filters NONE Filters NONE Steam 1 RUN: c8953509-3b3b-453e-8e00-f0f71b4e25ab